[Event "Titled Tuesday Blitz November 15 Late 2022"]
[White "Hajiyev, Kanan"]
[Black "Al-Tarboush, Ward"]
[WhiteFideId "13404148"]
[BlackFideId "7601450"]
[WhiteElo "2118"]
[BlackElo "2273"]
[Result "1-0"]
[Round "10"]
[TimeControl "180+1"]
[Date "2022.11.16"]
[WhiteClock "0:00:09"]
[BlackClock "0:00:33"]

1. d4 {[%clk 0:02:45]}  Nf6 {[%clk 0:02:57]} 2. Nf3 {[%clk 0:02:46]}  g6 {[%clk 0:02:57]} 3. c4 {[%clk 0:02:47]}  Bg7 {[%clk 0:02:56]} 4. g3 {[%clk 0:02:47]}  O-O {[%clk 0:02:56]} 5. Bg2 {[%clk 0:02:48]}  c6 {[%clk 0:02:56]} 6. O-O {[%clk 0:02:48]}  d5 {[%clk 0:02:56]} 7. cxd5 {[%clk 0:02:49]}  cxd5 {[%clk 0:02:57]} 8. Nc3 {[%clk 0:02:49]}  Nc6 {[%clk 0:02:57]} 9. Ne5 {[%clk 0:02:49]}  Bf5 {[%clk 0:02:53]} 10. Nxc6 {[%clk 0:02:45]}  bxc6 {[%clk 0:02:54]} 11. Na4 {[%clk 0:02:46]}  Ne4 {[%clk 0:02:53]} 12. Be3 {[%clk 0:02:42]}  Rb8 {[%clk 0:02:52]} 13. Rc1 {[%clk 0:02:40]}  Qa5 {[%clk 0:02:51]} 14. b3 {[%clk 0:02:38]}  h5 {[%clk 0:02:47]} 15. Qe1 {[%clk 0:02:04]}  Qa6 {[%clk 0:02:43]} 16. f3 {[%clk 0:01:58]}  Nd6 {[%clk 0:02:43]} 17. Kh1 {[%clk 0:01:50]}  Nb5 {[%clk 0:02:42]} 18. Qd2 {[%clk 0:01:48]}  h4 {[%clk 0:02:33]} 19. g4 {[%clk 0:01:47]}  Be6 {[%clk 0:02:34]} 20. Nc5 {[%clk 0:01:35]}  Qc8 {[%clk 0:02:34]} 21. a4 {[%clk 0:01:30]}  Nd6 {[%clk 0:02:33]} 22. Bg5 {[%clk 0:01:27]}  Bf6 {[%clk 0:02:27]} 23. Bxf6 {[%clk 0:01:24]}  exf6 {[%clk 0:02:28]} 24. Qf4 {[%clk 0:01:19]}  Qd8 {[%clk 0:02:28]} 25. Rc3 {[%clk 0:00:55]}  g5 {[%clk 0:02:29]} 26. Qd2 {[%clk 0:00:52]}  Qa5 {[%clk 0:02:25]} 27. h3 {[%clk 0:00:48]}  Rfc8 {[%clk 0:02:20]} 28. Qc2 {[%clk 0:00:45]}  Qb4 {[%clk 0:02:19]} 29. Nxe6 {[%clk 0:00:43]}  fxe6 {[%clk 0:02:19]} 30. Qg6+ {[%clk 0:00:42]}  Kf8 {[%clk 0:02:15]} 31. Qxf6+ {[%clk 0:00:43]}  Nf7 {[%clk 0:02:14]} 32. Rfc1 {[%clk 0:00:42]}  Qe7 {[%clk 0:02:12]} 33. Qg6 {[%clk 0:00:37]}  Rb6 {[%clk 0:02:06]} 34. e4 {[%clk 0:00:36]}  a5 {[%clk 0:01:58]} 35. e5 {[%clk 0:00:34]}  Nd8 {[%clk 0:01:47]} 36. f4 {[%clk 0:00:34]}  Qg7 {[%clk 0:01:41]} 37. Qd3 {[%clk 0:00:29]}  gxf4 {[%clk 0:01:30]} 38. Rf1 {[%clk 0:00:29]}  Qg5 {[%clk 0:01:28]} 39. Qd2 {[%clk 0:00:29]}  Nf7 {[%clk 0:01:27]} 40. Rxf4 {[%clk 0:00:29]}  Ke8 {[%clk 0:01:22]} 41. Qf2 {[%clk 0:00:27]}  Rc7 {[%clk 0:01:22]} 42. Rcf3 {[%clk 0:00:26]}  Rbb7 {[%clk 0:01:21]} 43. Qd2 {[%clk 0:00:24]}  c5 {[%clk 0:01:16]} 44. dxc5 {[%clk 0:00:22]}  Qxe5 {[%clk 0:01:13]} 45. Re3 {[%clk 0:00:17]}  Qg5 {[%clk 0:01:01]} 46. Rxe6+ {[%clk 0:00:17]}  Kd8 {[%clk 0:01:01]} 47. Qxd5+ {[%clk 0:00:15]}  Qxd5 {[%clk 0:01:00]} 48. Bxd5 {[%clk 0:00:15]}  Rb4 {[%clk 0:00:54]} 49. Rxb4 {[%clk 0:00:12]}  axb4 {[%clk 0:00:55]} 50. c6 {[%clk 0:00:13]}  Ng5 {[%clk 0:00:49]} 51. Rg6 {[%clk 0:00:11]}  Nxh3 {[%clk 0:00:49]} 52. Rg8+ {[%clk 0:00:09]}  Ke7 {[%clk 0:00:50]} 53. Rg7+ {[%clk 0:00:09]}  Kd6 {[%clk 0:00:50]} 54. Rxc7 {[%clk 0:00:10]}  Kxc7 {[%clk 0:00:51]} 55. a5 {[%clk 0:00:07]}  Nf4 {[%clk 0:00:49]} 56. Be4 {[%clk 0:00:07]}  Ne6 {[%clk 0:00:49]} 57. a6 {[%clk 0:00:06]}  Kb6 {[%clk 0:00:49]} 58. Bf5 {[%clk 0:00:05]}  Nc7 {[%clk 0:00:42]} 59. Bd7 {[%clk 0:00:04]}  Kxa6 {[%clk 0:00:34]} 60. g5 {[%clk 0:00:05]}  Kb6 {[%clk 0:00:33]} 61. g6 {[%clk 0:00:05]}  Nd5 {[%clk 0:00:33]} 62. g7 {[%clk 0:00:05]}  Nf6 {[%clk 0:00:33]} 63. Be6 {[%clk 0:00:06]}  Kxc6 {[%clk 0:00:33]} 64. g8=Q {[%clk 0:00:07]}  Nxg8 {[%clk 0:00:33]} 65. Bxg8 {[%clk 0:00:07]}  Kd6 {[%clk 0:00:33]} 66. Kh2 {[%clk 0:00:08]}  Ke5 {[%clk 0:00:33]} 67. Kh3 {[%clk 0:00:09]} 1-0


[Site "https://www.chess.com"]

[Event "Titled Tuesday Blitz November 15 Late 2022"]
[White "Hambleton, Aman"]
[Black "Badelka, Olga"]
[WhiteFideId "2606577"]
[BlackFideId "13509926"]
[WhiteElo "2538"]
[BlackElo "2337"]
[Result "1-0"]
[Round "10"]
[TimeControl "180+1"]
[Date "2022.11.16"]
[WhiteClock "0:00:02"]
[BlackClock "0:00:01"]

1. d4 {[%clk 0:03:00]}  Nf6 {[%clk 0:02:59]} 2. c4 {[%clk 0:02:57]}  e6 {[%clk 0:02:59]} 3. Nc3 {[%clk 0:02:55]}  Bb4 {[%clk 0:02:57]} 4. Qc2 {[%clk 0:02:55]}  d6 {[%clk 0:02:51]} 5. e4 {[%clk 0:02:39]}  Nbd7 {[%clk 0:02:40]} 6. Bd3 {[%clk 0:02:37]}  e5 {[%clk 0:02:31]} 7. Ne2 {[%clk 0:01:59]}  exd4 {[%clk 0:02:26]} 8. Nxd4 {[%clk 0:02:00]}  Nc5 {[%clk 0:02:18]} 9. O-O {[%clk 0:01:59]}  Nxd3 {[%clk 0:02:02]} 10. Qxd3 {[%clk 0:02:00]}  h6 {[%clk 0:01:57]} 11. Nc2 {[%clk 0:00:39]}  Bxc3 {[%clk 0:01:52]} 12. Qxc3 {[%clk 0:00:40]}  O-O {[%clk 0:01:48]} 13. f3 {[%clk 0:00:38]}  b5 {[%clk 0:01:27]} 14. cxb5 {[%clk 0:00:34]}  a6 {[%clk 0:01:27]} 15. bxa6 {[%clk 0:00:29]}  Bxa6 {[%clk 0:01:27]} 16. Rd1 {[%clk 0:00:20]}  Qe7 {[%clk 0:01:07]} 17. b3 {[%clk 0:00:11]}  Nh5 {[%clk 0:00:59]} 18. Bb2 {[%clk 0:00:10]}  f5 {[%clk 0:00:58]} 19. Re1 {[%clk 0:00:05]}  Nf4 {[%clk 0:00:34]} 20. Kh1 {[%clk 0:00:02]}  fxe4 {[%clk 0:00:14]} 21. Rxe4 {[%clk 0:00:03]}  Qg5 {[%clk 0:00:14]} 22. Qd2 {[%clk 0:00:03]}  Bb7 {[%clk 0:00:09]} 23. Re3 {[%clk 0:00:02]}  Kh7 {[%clk 0:00:04]} 24. Rae1 {[%clk 0:00:02]}  Rae8 {[%clk 0:00:04]} 25. Nd4 {[%clk 0:00:02]}  Rxe3 {[%clk 0:00:03]} 26. Rxe3 {[%clk 0:00:03]}  Nxg2 {[%clk 0:00:03]} 27. Qc2+ {[%clk 0:00:03]}  Kh8 {[%clk 0:00:02]} 28. Nf5 {[%clk 0:00:01]}  Qxf5 {[%clk 0:00:01]} 29. Qxg2 {[%clk 0:00:01]}  Bxf3 {[%clk 0:00:01]} 30. Rxf3 {[%clk 0:00:02]}  Qxf3 {[%clk 0:00:01]} 31. Bxg7+ {[%clk 0:00:02]}  Kh7 {[%clk 0:00:02]} 32. Bxf8 {[%clk 0:00:03]}  Qxf8 {[%clk 0:00:01]} 33. Qe4+ {[%clk 0:00:03]}  Kh8 {[%clk 0:00:01]} 34. Kg2 {[%clk 0:00:03]}  Qg7+ {[%clk 0:00:01]} 35. Kf3 {[%clk 0:00:04]}  Qc3+ {[%clk 0:00:01]} 36. Qe3 {[%clk 0:00:04]}  Qf6+ {[%clk 0:00:01]} 37. Kg3 {[%clk 0:00:03]}  Qg6+ {[%clk 0:00:01]} 38. Kf3 {[%clk 0:00:03]}  Qf6+ {[%clk 0:00:02]} 39. Ke4 {[%clk 0:00:03]}  Qe5+ {[%clk 0:00:02]} 40. Kd3 {[%clk 0:00:04]}  Qf5+ {[%clk 0:00:01]} 41. Kc3 {[%clk 0:00:03]}  Qa5+ {[%clk 0:00:01]} 42. Kb2 {[%clk 0:00:02]}  Kh7 {[%clk 0:00:01]} 43. a4 {[%clk 0:00:02]} 1-0


[Site "https://www.chess.com"]

[Event "Titled Tuesday Blitz November 15 Late 2022"]
[White "Harish, Neeraj"]
[Black "Paiva, Henrique M A Albergaria"]
[WhiteFideId "30958130"]
[BlackFideId "1920995"]
[WhiteElo "1815"]
[BlackElo "1953"]
[Result "0-1"]
[Round "10"]
[TimeControl "180+1"]
[Date "2022.11.16"]
[WhiteClock "0:01:41"]
[BlackClock "0:01:29"]

1. Nf3 {[%clk 0:02:59]}  d5 {[%clk 0:02:58]} 2. c4 {[%clk 0:02:58]}  c6 {[%clk 0:02:58]} 3. e3 {[%clk 0:02:57]}  Nf6 {[%clk 0:02:58]} 4. b3 {[%clk 0:02:57]}  g6 {[%clk 0:02:56]} 5. Bb2 {[%clk 0:02:57]}  Bg7 {[%clk 0:02:57]} 6. Be2 {[%clk 0:02:57]}  O-O {[%clk 0:02:57]} 7. O-O {[%clk 0:02:57]}  Bg4 {[%clk 0:02:56]} 8. Nc3 {[%clk 0:02:54]}  e6 {[%clk 0:02:56]} 9. d4 {[%clk 0:02:48]}  Nbd7 {[%clk 0:02:56]} 10. Qc2 {[%clk 0:02:47]}  Bf5 {[%clk 0:02:55]} 11. Bd3 {[%clk 0:02:45]}  Bxd3 {[%clk 0:02:55]} 12. Qxd3 {[%clk 0:02:46]}  a5 {[%clk 0:02:54]} 13. Ba3 {[%clk 0:02:35]}  Re8 {[%clk 0:02:52]} 14. Rac1 {[%clk 0:02:34]}  Bf8 {[%clk 0:02:44]} 15. Bxf8 {[%clk 0:02:32]}  Kxf8 {[%clk 0:02:44]} 16. e4 {[%clk 0:02:28]}  dxe4 {[%clk 0:02:44]} 17. Nxe4 {[%clk 0:02:29]}  Nxe4 {[%clk 0:02:44]} 18. Qxe4 {[%clk 0:02:28]}  Nf6 {[%clk 0:02:44]} 19. Qh4 {[%clk 0:02:29]}  Kg7 {[%clk 0:02:44]} 20. Rfd1 {[%clk 0:02:27]}  Nh5 {[%clk 0:02:41]} 21. Qxd8 {[%clk 0:02:22]}  Rexd8 {[%clk 0:02:40]} 22. d5 {[%clk 0:02:21]}  cxd5 {[%clk 0:02:35]} 23. cxd5 {[%clk 0:02:21]}  exd5 {[%clk 0:02:35]} 24. Rc7 {[%clk 0:02:20]}  Nf4 {[%clk 0:02:10]} 25. g3 {[%clk 0:02:17]}  Ne6 {[%clk 0:02:06]} 26. Rxb7 {[%clk 0:02:17]}  d4 {[%clk 0:02:04]} 27. Ne5 {[%clk 0:02:00]}  Rf8 {[%clk 0:02:01]} 28. Nc6 {[%clk 0:01:56]}  Kg8 {[%clk 0:01:48]} 29. Rd7 {[%clk 0:01:53]}  a4 {[%clk 0:01:46]} 30. b4 {[%clk 0:01:51]}  a3 {[%clk 0:01:40]} 31. Nxd4 {[%clk 0:01:51]}  Nxd4 {[%clk 0:01:34]} 32. R1xd4 {[%clk 0:01:51]}  Rfc8 {[%clk 0:01:34]} 33. b5 {[%clk 0:01:48]}  Rc1+ {[%clk 0:01:31]} 34. Kg2 {[%clk 0:01:47]}  Rc2 {[%clk 0:01:32]} 35. Rd2 {[%clk 0:01:48]}  Rb2 {[%clk 0:01:30]} 36. Rd8+ {[%clk 0:01:38]}  Rxd8 {[%clk 0:01:30]} 37. Rxd8+ {[%clk 0:01:38]}  Kg7 {[%clk 0:01:30]} 38. Ra8 {[%clk 0:01:38]}  Rxa2 {[%clk 0:01:30]} 39. b6 {[%clk 0:01:39]}  Rb2 {[%clk 0:01:31]} 40. Rxa3 {[%clk 0:01:38]}  Rxb6 {[%clk 0:01:30]} 41. Re3 {[%clk 0:01:39]}  h5 {[%clk 0:01:29]} 42. h4 {[%clk 0:01:39]}  Rb4 {[%clk 0:01:29]} 43. Ra3 {[%clk 0:01:40]}  Rc4 {[%clk 0:01:28]} 44. Ra6 {[%clk 0:01:39]}  Rc5 {[%clk 0:01:28]} 45. Rb6 {[%clk 0:01:40]}  Rc3 {[%clk 0:01:28]} 46. Ra6 {[%clk 0:01:40]}  Rb3 {[%clk 0:01:29]} 47. Rb6 {[%clk 0:01:41]}  Rxb6 {[%clk 0:01:29]} 0-1


[Site "https://www.chess.com"]

[Event "Titled Tuesday Blitz November 15 Late 2022"]
[White "Harshavardhan G B"]
[Black "Averjanov, Alexey"]
[WhiteFideId "25059009"]
[BlackFideId "14109867"]
[WhiteElo "2333"]
[BlackElo "2620"]
[Result "1-0"]
[Round "10"]
[TimeControl "180+1"]
[Date "2022.11.15"]
[WhiteClock "0:00:08"]
[BlackClock "0:00:03"]

1. d4 {[%clk 0:03:00]}  d5 {[%clk 0:02:59]} 2. c4 {[%clk 0:03:00]}  dxc4 {[%clk 0:02:59]} 3. e4 {[%clk 0:02:58]}  Nf6 {[%clk 0:02:59]} 4. e5 {[%clk 0:02:57]}  Nd5 {[%clk 0:02:58]} 5. Bxc4 {[%clk 0:02:57]}  Nb6 {[%clk 0:02:58]} 6. Bd3 {[%clk 0:02:53]}  Nc6 {[%clk 0:02:57]} 7. Ne2 {[%clk 0:02:52]}  Bg4 {[%clk 0:02:56]} 8. Be3 {[%clk 0:02:52]}  e6 {[%clk 0:02:53]} 9. Nbc3 {[%clk 0:02:49]}  Nb4 {[%clk 0:02:51]} 10. Be4 {[%clk 0:02:47]}  N4d5 {[%clk 0:02:51]} 11. O-O {[%clk 0:02:45]}  c6 {[%clk 0:02:46]} 12. a4 {[%clk 0:02:38]}  a5 {[%clk 0:02:46]} 13. Qb3 {[%clk 0:02:33]}  Bb4 {[%clk 0:02:40]} 14. Ng3 {[%clk 0:02:28]}  h5 {[%clk 0:02:20]} 15. h3 {[%clk 0:02:24]}  h4 {[%clk 0:02:19]} 16. Nge2 {[%clk 0:02:15]}  Bh5 {[%clk 0:02:12]} 17. Nc1 {[%clk 0:01:35]}  Nxe3 {[%clk 0:02:06]} 18. fxe3 {[%clk 0:01:32]}  Qg5 {[%clk 0:02:05]} 19. N3e2 {[%clk 0:01:25]}  Bxe2 {[%clk 0:01:52]} 20. Nxe2 {[%clk 0:01:26]}  Nd5 {[%clk 0:01:51]} 21. Nf4 {[%clk 0:01:21]}  O-O-O {[%clk 0:01:21]} 22. Bxd5 {[%clk 0:01:15]}  cxd5 {[%clk 0:01:20]} 23. Rac1+ {[%clk 0:01:10]}  Kb8 {[%clk 0:01:19]} 24. Qd3 {[%clk 0:01:10]}  Rc8 {[%clk 0:01:15]} 25. Ne2 {[%clk 0:01:04]}  Rxc1 {[%clk 0:01:08]} 26. Rxc1 {[%clk 0:01:02]}  Rc8 {[%clk 0:01:08]} 27. Rxc8+ {[%clk 0:00:59]}  Kxc8 {[%clk 0:01:08]} 28. Kf2 {[%clk 0:01:00]}  Kb8 {[%clk 0:01:05]} 29. Qc2 {[%clk 0:00:55]}  f6 {[%clk 0:00:50]} 30. exf6 {[%clk 0:00:52]}  Qxf6+ {[%clk 0:00:47]} 31. Kg1 {[%clk 0:00:48]}  e5 {[%clk 0:00:44]} 32. dxe5 {[%clk 0:00:38]}  Qxe5 {[%clk 0:00:44]} 33. Qd3 {[%clk 0:00:36]}  Bc5 {[%clk 0:00:40]} 34. Nd4 {[%clk 0:00:34]}  g5 {[%clk 0:00:27]} 35. b3 {[%clk 0:00:30]}  Bxd4 {[%clk 0:00:25]} 36. Qxd4 {[%clk 0:00:28]}  Qf5 {[%clk 0:00:24]} 37. Qc3 {[%clk 0:00:25]}  Qe4 {[%clk 0:00:19]} 38. Qh8+ {[%clk 0:00:20]}  Kc7 {[%clk 0:00:11]} 39. Qg7+ {[%clk 0:00:20]}  Kc6 {[%clk 0:00:10]} 40. Qxg5 {[%clk 0:00:20]}  Qb1+ {[%clk 0:00:09]} 41. Kh2 {[%clk 0:00:20]}  Qxb3 {[%clk 0:00:09]} 42. Qxh4 {[%clk 0:00:19]}  b5 {[%clk 0:00:09]} 43. Qf6+ {[%clk 0:00:17]}  Kc5 {[%clk 0:00:09]} 44. Qe7+ {[%clk 0:00:14]}  Kc4 {[%clk 0:00:07]} 45. axb5 {[%clk 0:00:14]}  Qxb5 {[%clk 0:00:06]} 46. h4 {[%clk 0:00:14]}  a4 {[%clk 0:00:05]} 47. h5 {[%clk 0:00:14]}  Kb3 {[%clk 0:00:04]} 48. h6 {[%clk 0:00:13]}  Qb6 {[%clk 0:00:04]} 49. Qg7 {[%clk 0:00:10]}  a3 {[%clk 0:00:03]} 50. h7 {[%clk 0:00:09]}  Qd6+ {[%clk 0:00:03]} 51. g3 {[%clk 0:00:09]}  d4 {[%clk 0:00:03]} 52. h8=Q {[%clk 0:00:08]} 1-0


[Site "https://www.chess.com"]

[Event "Titled Tuesday Blitz November 15 Late 2022"]
[White "Kaplan, Avi Harrison"]
[Black "Shuvalova, Polina"]
[WhiteFideId "30934559"]
[BlackFideId "24171760"]
[WhiteElo "1983"]
[BlackElo "2342"]
[Result "1-0"]
[Round "10"]
[TimeControl "180+1"]
[Date "2022.11.16"]
[WhiteClock "0:00:06"]
[BlackClock "0:00:08"]

1. d4 {[%clk 0:02:59]}  Nf6 {[%clk 0:02:57]} 2. c4 {[%clk 0:02:59]}  e6 {[%clk 0:02:57]} 3. Nc3 {[%clk 0:02:56]}  Bb4 {[%clk 0:02:56]} 4. Bd2 {[%clk 0:02:56]}  O-O {[%clk 0:02:56]} 5. Nf3 {[%clk 0:02:54]}  d5 {[%clk 0:02:56]} 6. e3 {[%clk 0:02:54]}  Nbd7 {[%clk 0:02:56]} 7. Bd3 {[%clk 0:02:51]}  dxc4 {[%clk 0:02:52]} 8. Bxc4 {[%clk 0:02:51]}  Be7 {[%clk 0:02:48]} 9. O-O {[%clk 0:02:51]}  a6 {[%clk 0:02:47]} 10. e4 {[%clk 0:02:42]}  b5 {[%clk 0:02:46]} 11. Bd3 {[%clk 0:02:41]}  Bb7 {[%clk 0:02:46]} 12. e5 {[%clk 0:02:40]}  Nd5 {[%clk 0:02:44]} 13. Rc1 {[%clk 0:02:31]}  Nxc3 {[%clk 0:02:41]} 14. Rxc3 {[%clk 0:02:28]}  c5 {[%clk 0:02:38]} 15. Bxh7+ {[%clk 0:02:07]}  Kxh7 {[%clk 0:02:29]} 16. Ng5+ {[%clk 0:02:06]}  Bxg5 {[%clk 0:02:28]} 17. Rh3+ {[%clk 0:02:04]}  Kg8 {[%clk 0:01:50]} 18. Qh5 {[%clk 0:01:57]}  f6 {[%clk 0:01:42]} 19. Bxg5 {[%clk 0:01:53]}  fxg5 {[%clk 0:01:38]} 20. Qh7+ {[%clk 0:01:16]}  Kf7 {[%clk 0:01:38]} 21. Qh5+ {[%clk 0:01:17]}  Ke7 {[%clk 0:01:15]} 22. Qxg5+ {[%clk 0:01:14]}  Nf6 {[%clk 0:01:14]} 23. Qxg7+ {[%clk 0:00:56]}  Ke8 {[%clk 0:01:09]} 24. exf6 {[%clk 0:00:56]}  Qd7 {[%clk 0:00:54]} 25. Rh8 {[%clk 0:00:37]}  Qf7 {[%clk 0:00:25]} 26. Rxf8+ {[%clk 0:00:29]}  Qxf8 {[%clk 0:00:26]} 27. Qxb7 {[%clk 0:00:30]}  Rd8 {[%clk 0:00:25]} 28. Re1 {[%clk 0:00:24]}  Qxf6 {[%clk 0:00:24]} 29. d5 {[%clk 0:00:25]}  Kf8 {[%clk 0:00:20]} 30. Qc6 {[%clk 0:00:08]}  Rxd5 {[%clk 0:00:17]} 31. h3 {[%clk 0:00:08]}  Kf7 {[%clk 0:00:14]} 32. Qc7+ {[%clk 0:00:07]}  Qe7 {[%clk 0:00:12]} 33. Qf4+ {[%clk 0:00:07]}  Qf6 {[%clk 0:00:12]} 34. Qc7+ {[%clk 0:00:07]}  Qe7 {[%clk 0:00:12]} 35. Qf4+ {[%clk 0:00:08]}  Rf5 {[%clk 0:00:12]} 36. Qh6 {[%clk 0:00:08]}  Qf6 {[%clk 0:00:11]} 37. Qh7+ {[%clk 0:00:06]}  Ke8 {[%clk 0:00:09]} 38. Qg8+ {[%clk 0:00:05]}  Ke7 {[%clk 0:00:09]} 39. Qc8 {[%clk 0:00:03]}  Kf7 {[%clk 0:00:06]} 40. Qc7+ {[%clk 0:00:02]}  Qe7 {[%clk 0:00:06]} 41. Qg3 {[%clk 0:00:02]}  c4 {[%clk 0:00:04]} 42. Qg4 {[%clk 0:00:02]}  Qf6 {[%clk 0:00:04]} 43. Qh5+ {[%clk 0:00:02]}  Ke7 {[%clk 0:00:03]} 44. Qh7+ {[%clk 0:00:02]}  Qf7 {[%clk 0:00:04]} 45. Qxf7+ {[%clk 0:00:02]}  Kxf7 {[%clk 0:00:05]} 46. Re3 {[%clk 0:00:02]}  Rd5 {[%clk 0:00:05]} 47. Re2 {[%clk 0:00:02]}  Rd1+ {[%clk 0:00:05]} 48. Kh2 {[%clk 0:00:02]}  Ra1 {[%clk 0:00:06]} 49. a3 {[%clk 0:00:02]}  Rb1 {[%clk 0:00:04]} 50. h4 {[%clk 0:00:02]}  Kf6 {[%clk 0:00:04]} 51. h5 {[%clk 0:00:03]}  Kg5 {[%clk 0:00:04]} 52. Re5+ {[%clk 0:00:03]}  Kf6 {[%clk 0:00:04]} 53. h6 {[%clk 0:00:02]}  Rxb2 {[%clk 0:00:01]} 54. h7 {[%clk 0:00:02]}  Kg7 {[%clk 0:00:01]} 55. Rxe6 {[%clk 0:00:03]}  Kxh7 {[%clk 0:00:02]} 56. Rxa6 {[%clk 0:00:03]}  c3 {[%clk 0:00:02]} 57. Rc6 {[%clk 0:00:04]}  c2 {[%clk 0:00:02]} 58. f4 {[%clk 0:00:05]}  Kg7 {[%clk 0:00:03]} 59. Kg3 {[%clk 0:00:04]}  b4 {[%clk 0:00:02]} 60. axb4 {[%clk 0:00:04]}  Kf7 {[%clk 0:00:03]} 61. b5 {[%clk 0:00:04]}  Ke7 {[%clk 0:00:03]} 62. b6 {[%clk 0:00:04]}  Kd7 {[%clk 0:00:03]} 63. Rc7+ {[%clk 0:00:04]}  Kd6 {[%clk 0:00:04]} 64. Kh3 {[%clk 0:00:04]}  Rb3+ {[%clk 0:00:04]} 65. g3 {[%clk 0:00:04]}  Rb2 {[%clk 0:00:03]} 66. Rc8 {[%clk 0:00:05]}  Kd7 {[%clk 0:00:03]} 67. Rc3 {[%clk 0:00:05]}  Kd6 {[%clk 0:00:02]} 68. b7 {[%clk 0:00:05]}  Rxb7 {[%clk 0:00:02]} 69. Rxc2 {[%clk 0:00:05]}  Ke6 {[%clk 0:00:03]} 70. Re2+ {[%clk 0:00:05]}  Kf5 {[%clk 0:00:03]} 71. Re5+ {[%clk 0:00:06]}  Kf6 {[%clk 0:00:04]} 72. g4 {[%clk 0:00:04]}  Rh7+ {[%clk 0:00:04]} 73. Kg3 {[%clk 0:00:05]}  Ra7 {[%clk 0:00:05]} 74. Re3 {[%clk 0:00:05]}  Ra4 {[%clk 0:00:05]} 75. Rb3 {[%clk 0:00:05]}  Rc4 {[%clk 0:00:05]} 76. Rb6+ {[%clk 0:00:05]}  Kg7 {[%clk 0:00:05]} 77. g5 {[%clk 0:00:06]}  Rc1 {[%clk 0:00:05]} 78. Kg4 {[%clk 0:00:06]}  Rg1+ {[%clk 0:00:05]} 79. Kf5 {[%clk 0:00:07]}  Re1 {[%clk 0:00:05]} 80. Rb7+ {[%clk 0:00:07]}  Kg8 {[%clk 0:00:05]} 81. Kf6 {[%clk 0:00:07]}  Re8 {[%clk 0:00:06]} 82. f5 {[%clk 0:00:06]}  Ra8 {[%clk 0:00:06]} 83. Kg6 {[%clk 0:00:06]}  Ra6+ {[%clk 0:00:06]} 84. f6 {[%clk 0:00:07]}  Ra8 {[%clk 0:00:06]} 85. Rg7+ {[%clk 0:00:04]}  Kh8 {[%clk 0:00:06]} 86. Rh7+ {[%clk 0:00:04]}  Kg8 {[%clk 0:00:07]} 87. f7+ {[%clk 0:00:05]}  Kf8 {[%clk 0:00:08]} 88. Rh8+ {[%clk 0:00:06]} 1-0


[Site "https://www.chess.com"]

[Event "Titled Tuesday Blitz November 15 Late 2022"]
[White "Klenburg, Michael"]
[Black "Annaberdiyev, Babageldi"]
[WhiteFideId "14102072"]
[BlackFideId "14000385"]
[WhiteElo "2405"]
[BlackElo "2332"]
[Result "1-0"]
[Round "10"]
[TimeControl "180+1"]
[Date "2022.11.16"]
[WhiteClock "0:02:33"]
[BlackClock "0:02:49"]

1. g3 {[%clk 0:03:00]}  e6 {[%clk 0:03:00]} 2. Bg2 {[%clk 0:03:01]}  d5 {[%clk 0:03:01]} 3. Nf3 {[%clk 0:03:01]}  f5 {[%clk 0:03:00]} 4. O-O {[%clk 0:03:00]}  Nf6 {[%clk 0:03:01]} 5. d3 {[%clk 0:03:01]}  c6 {[%clk 0:03:01]} 6. c4 {[%clk 0:03:01]}  Bc5 {[%clk 0:03:01]} 7. cxd5 {[%clk 0:02:58]}  exd5 {[%clk 0:03:01]} 8. Nc3 {[%clk 0:02:58]}  O-O {[%clk 0:03:00]} 9. Qc2 {[%clk 0:02:55]}  Qe7 {[%clk 0:02:58]} 10. Bf4 {[%clk 0:02:44]}  Nbd7 {[%clk 0:02:57]} 11. e4 {[%clk 0:02:42]}  fxe4 {[%clk 0:02:56]} 12. dxe4 {[%clk 0:02:42]}  Nxe4 {[%clk 0:02:56]} 13. Nxe4 {[%clk 0:02:42]}  dxe4 {[%clk 0:02:56]} 14. Ng5 {[%clk 0:02:40]}  Nf6 {[%clk 0:02:53]} 15. Nxe4 {[%clk 0:02:37]}  Bf5 {[%clk 0:02:49]} 16. Qxc5 {[%clk 0:02:33]} 1-0


[Site "https://www.chess.com"]

[Event "Titled Tuesday Blitz November 15 Late 2022"]
[White "Kopylov, Alexander A."]
[Black "Janaszak, Dawid"]
[WhiteFideId "4164857"]
[BlackFideId "1119206"]
[WhiteElo "2436"]
[BlackElo "2226"]
[Result "0-1"]
[Round "10"]
[TimeControl "180+1"]
[Date "2022.11.16"]
[WhiteClock "0:00:46"]
[BlackClock "0:00:17"]

1. e4 {[%clk 0:03:00]}  c5 {[%clk 0:02:59]} 2. Nf3 {[%clk 0:03:01]}  Nc6 {[%clk 0:03:00]} 3. Bb5 {[%clk 0:03:01]}  g6 {[%clk 0:03:00]} 4. O-O {[%clk 0:03:01]}  Bg7 {[%clk 0:03:00]} 5. Re1 {[%clk 0:03:02]}  e5 {[%clk 0:02:59]} 6. Nc3 {[%clk 0:02:59]}  Nge7 {[%clk 0:02:59]} 7. Nd5 {[%clk 0:02:59]}  O-O {[%clk 0:02:58]} 8. d3 {[%clk 0:02:57]}  d6 {[%clk 0:02:54]} 9. h3 {[%clk 0:02:57]}  Nxd5 {[%clk 0:02:45]} 10. exd5 {[%clk 0:02:56]}  Nb4 {[%clk 0:02:42]} 11. Bc4 {[%clk 0:02:55]}  b6 {[%clk 0:02:30]} 12. c3 {[%clk 0:02:47]}  Na6 {[%clk 0:02:28]} 13. a4 {[%clk 0:02:47]}  Nc7 {[%clk 0:02:29]} 14. d4 {[%clk 0:02:42]}  Bb7 {[%clk 0:02:11]} 15. dxe5 {[%clk 0:02:12]}  dxe5 {[%clk 0:02:12]} 16. d6 {[%clk 0:02:13]}  Bxf3 {[%clk 0:02:04]} 17. Qxf3 {[%clk 0:01:59]}  Qxd6 {[%clk 0:02:03]} 18. Bg5 {[%clk 0:01:57]}  Ne6 {[%clk 0:01:55]} 19. Red1 {[%clk 0:01:48]}  Nxg5 {[%clk 0:01:43]} 20. Rxd6 {[%clk 0:01:47]}  Nxf3+ {[%clk 0:01:43]} 21. gxf3 {[%clk 0:01:47]}  Bh6 {[%clk 0:01:17]} 22. Rd7 {[%clk 0:01:42]}  Bg5 {[%clk 0:01:05]} 23. a5 {[%clk 0:01:41]}  bxa5 {[%clk 0:00:41]} 24. Rxa5 {[%clk 0:01:40]}  Rad8 {[%clk 0:00:33]} 25. Rdxa7 {[%clk 0:01:36]}  Rd2 {[%clk 0:00:28]} 26. b3 {[%clk 0:01:26]}  Bh4 {[%clk 0:00:26]} 27. Rxf7 {[%clk 0:01:17]}  Rxf7 {[%clk 0:00:25]} 28. Ra7 {[%clk 0:01:17]}  Bxf2+ {[%clk 0:00:24]} 29. Kf1 {[%clk 0:01:15]}  Bg3 {[%clk 0:00:21]} 30. Rxf7 {[%clk 0:01:14]}  Kh8 {[%clk 0:00:20]} 31. Rc7 {[%clk 0:01:09]}  Rf2+ {[%clk 0:00:19]} 32. Kg1 {[%clk 0:01:09]}  Rxf3 {[%clk 0:00:20]} 33. Rxc5 {[%clk 0:00:54]}  Rxc3 {[%clk 0:00:19]} 34. Kg2 {[%clk 0:00:53]}  Bf4 {[%clk 0:00:19]} 35. Rc8+ {[%clk 0:00:48]}  Kg7 {[%clk 0:00:19]} 36. Rc7+ {[%clk 0:00:49]}  Kh6 {[%clk 0:00:17]} 37. Re7 {[%clk 0:00:49]}  Rg3+ {[%clk 0:00:17]} 38. Kf2 {[%clk 0:00:47]}  Rxh3 {[%clk 0:00:18]} 39. Bg8 {[%clk 0:00:48]}  Kg5 {[%clk 0:00:17]} 40. Rxh7 {[%clk 0:00:48]}  Rxh7 {[%clk 0:00:17]} 41. Bxh7 {[%clk 0:00:48]}  Kf6 {[%clk 0:00:16]} 42. Kf3 {[%clk 0:00:48]}  Kg7 {[%clk 0:00:16]} 43. Bxg6 {[%clk 0:00:45]}  Kxg6 {[%clk 0:00:17]} 44. b4 {[%clk 0:00:45]}  Kf6 {[%clk 0:00:18]} 45. b5 {[%clk 0:00:46]}  Kf5 {[%clk 0:00:17]} 0-1


[Site "https://www.chess.com"]